Cogmind - Beta 11.1 @@@ ROGUE MODE // 2022.09.25 @ 20:46:22 // Winter2019/RPGLIKE Player: SmallBrainBigPP Result: Self-destructed Performance ------------- Evolutions (2) 1000 Regions Visited (4) 800 Robots Destroyed (55) 275 Value Destroyed (1987) 1987 Prototype IDs (7) 140 Alien Tech Used (0) 0 Bonus (111) 111 TOTAL SCORE: 4313 Bonus ------- High Alert Combat Kills 45 Follower Combat Kills 66 Cogmind --------- Core Integrity 446/1000 Matter 275/300 Energy 82/100 System Corruption 0% Temperature Cool (0) Movement Core (50) Location -8/Materials Parts ------- > --- POWER (1) -------- (None) > --- PROPULSION (2) --- (None) > --- UTILITY (4) ------ Improved Heat Sink Improved Signal Interpreter Improved Terrain Scanner Melee Analysis Suite > --- WEAPON (4) ------- Great Maul Katana Katana Scythe > --- INVENTORY (2) ---- System Restoration Module Rocket Launcher Peak State ------------ > --- POWER ------------ Light Ion Engine > --- PROPULSION ------- Compact Wheel > --- UTILITY ---------- Improved Heat Sink Improved Signal Interpreter Improved Terrain Scanner Improved Light Armor Plating > --- WEAPON ----------- Mining Laser Great Maul Katana Katana > --- INVENTORY -------- Rocket Launcher Datajack [Rating: 24] Favorites ----------- Power Light Ion Engine Engine Light Ion Engine Propulsion Compact Wheel Wheel Compact Wheel Utility Improved Heat Sink Device Improved Heat Sink Processor Improved Signal Interpreter Protection Improved Light Armor Plating Weapon Mining Laser Energy Gun EM Pulse Gun Special Weapon Mining Laser Impact Weapon Great Maul Slashing Weapon Katana Special Melee Weapon Datajack Build | -11 -10 -10 -9 -8 ------- Run | Scr Mat Min Mat Mat Slots Evolved 7 | . 3 1 . 3 Power . | . . . . . Propulsion 1 | . 1 . . . Utility 3 | . 2 . . 1 Weapon 3 | . . 1 . 2 Parts Attached 28 | 3 4 12 . 9 Power 2 | 1 . 1 . . Engine 2 | 1 . 1 . . Core . | . . . . . Reactor . | . . . . . Propulsion 3 | 1 1 . . 1 Treads . | . . . . . Leg . | . . . . . Wheel 3 | 1 1 . . 1 Hover . | . . . . . Flight . | . . . . . Utility 11 | . 3 4 . 4 Device 5 | . 1 2 . 2 Storage . | . . . . . Processor 2 | . . . . 2 Hackware . | . . . . . Protection 4 | . 2 2 . . Artifact . | . . . . . Weapon 12 | 1 . 7 . 4 Energy Gun 3 | 1 . 2 . . Energy Cannon . | . . . . . Ballistic Gun . | . . . . . Ballistic Cannon . | . . . . . Launcher . | . . . . . Special Weapon 1 | . . 1 . . Impact Weapon 1 | . . 1 . . Slashing Weapon 5 | . . 2 . 3 Piercing Weapon . | . . . . . Special Melee Weapon 2 | . . 1 . 1 Unidentified Prototypes . | . . . . . Parts Lost 9 | . . 3 1 5 Power 1 | . . . . 1 Propulsion 2 | . . . 1 1 Utility 4 | . . 2 . 2 Weapon 2 | . . 1 . 1 Highest Loss Streak 3 | . . 3 1 3 To Critical Strikes . | . . . . . Average Slot Usage (%) 89 | . 98 88 94 82 Engine 13 | . 18 13 12 7 Wheel 23 | . 34 27 19 9 Device 19 | . 16 21 25 20 Processor 1 | . . . . 5 Protection 8 | . 8 8 12 7 Energy Gun 6 | . 18 4 . . Special Weapon 5 | . . 7 12 6 Impact Weapon 4 | . . 1 12 10 Slashing Weapon 3 | . . 1 . 11 Special Melee Weapon 1 | . . 2 . 1 Naked Turns . | . . . . . Heaviest Build 17 | 7 14 15 13 17 Greatest Support 32 | 16 32 32 32 21 Greatest Overweight (x) 2 | 2 . . . 1 Average Overweight (x) . | . . . . . Largest Inventory Capacity 2 | . 1 2 2 2 Average Capacity 1 | . . 1 2 2 Most Carried 2 | . 1 2 2 2 Average Carried 1 | . . 1 2 1 Final Capacity 2 | . 1 2 2 2 Final Carried 2 | . 1 2 2 2 Class Distribution -------------------- 100% | Mutant Dominant Class ---------------- Mutant | -10/Materials Mutant | -10/Mines Mutant | -9/Materials Mutant | -8/Materials Resources | -11 -10 -10 -9 -8 ----------- Run | Scr Mat Min Mat Mat Matter Collected 439 | 230 40 110 9 50 Remotely . | . . . . . Salvage Created 1765 | . 517 153 22 1073 Parts 71 | . 40 3 2 26 Haulers Intercepted 2 | . 1 . 1 . Recyclers Shooed 1 | . . . . 1 Parts Field Recycled . | . . . . . Retrieved Matter . | . . . . . Parts Self-Destructed . | . . . . . Prevented . | . . . . . Kills | -11 -10 -10 -9 -8 ------- Run | Scr Mat Min Mat Mat Combat Hostiles Destroyed 42 | . 9 11 1 21 Melee 19 | . . 7 . 12 Guns 10 | . 7 3 . . Cannons 1 | . . . 1 . AOE 1 | . 1 . . . Classes Destroyed 11 | . 6 1 1 3 Worker 7 | . 2 . . 5 Builder 3 | . 2 1 . . Hauler 2 | . 1 . 1 . Recycler 4 | . . . . 4 Operator 1 | . . . . 1 Watcher 6 | . 3 . . 3 Swarmer 3 | . 3 . . . Grunt 23 | . 6 1 . 16 Duelist 1 | . . . . 1 Sentry 5 | . . . 1 4 Assembled 10 | . . 10 . . Best Kill Streak 7 | . 4 5 1 7 Combat Bots Only 7 | . 3 4 1 7 Max Kills in Single Turn 1 | . 1 1 1 1 Gunslinging . | . . . . . Exploded 1 | . 1 . . . Melee 1 | . . 1 . 1 Uniques/NPCs Destroyed . | . . . . . Combat | -11 -10 -10 -9 -8 -------- Run | Scr Mat Min Mat Mat Damage Taken 3255 | . 459 867 263 1666 Core 2513 | . 390 619 222 1282 Absorbed by Shields . | . . . . . Redirected to Core 1532 | . 219 329 161 823 Core Remaining (%) 77 | 100 . 71 60 . Volleys Fired 247 | . 186 31 25 5 Largest 1 | . 1 1 1 1 Hottest 100 | . 40 100 100 100 Shots Fired 247 | . 186 31 25 5 Gun 204 | . 186 18 . . Cannon . | . . . . . Launcher . | . . . . . Special 43 | . . 13 25 5 Kinetic . | . . . . . Thermal 43 | . . 13 25 5 Explosive . | . . . . . Electromagnetic 204 | . 186 18 . . Robot Hit Streak 11 | . 11 8 3 . Robot Miss Streak 5 | . 5 1 . . Penetration Max . | . . . . . Secondary Targets . | . . . . . Shots Hit Robots 153 | . 46 31 2 74 Core Hits 52 | . 21 16 2 13 Critical Kills 4 | . . . . 4 Critical Parts Destroyed 17 | . . . . 17 Critical Strikes 26 | . 1 1 . 24 Corrupt 2 | . 1 1 . . Smash 21 | . . . . 21 Sever 3 | . . . . 3 Melee Attacks 147 | . . 30 2 115 Impact 95 | . . . 2 93 Slashing 52 | . . 30 . 22 Piercing . | . . . . . Sneak Attacks 10 | . . . . 10 Combat Hostiles . | . . . . . Follow-up Attacks 10 | . . . . 10 Damage Inflicted 5446 | . 873 953 48 3572 Guns 894 | . 719 175 . . Cannons . | . . . . . Explosions 232 | . 154 78 . . Melee 4272 | . . 700 . 3572 Ramming . | . . . . . Kinetic . | . . . . . Thermal 236 | . 110 78 48 . Explosive 44 | . 44 . . . Electromagnetic 894 | . 719 175 . . Impact 3258 | . . . . 3258 Slashing 1014 | . . 700 . 314 Piercing . | . . . . . Highest Corruption 5 | . . . 5 . Average Corruption 5 | . . . 5 . Corruption Purged . | . . . . . Corruption Blocked . | . . . . . Effects 4 | . . . 4 . Message Errors 2 | . . . 2 . Matter Fused 1 | . . . 1 . Alerts 1 | . . . 1 . Overload Shots . | . . . . . Overflow Damage 1487 | . 48 51 . 1388 Projectiles . | . . . . . Explosions 48 | . 48 . . . Melee 1439 | . . 51 . 1388 Knockbacks 17 | . . . . 17 Impact 17 | . . . . 17 Kinetic . | . . . . . Secondary . | . . . . . Self-Inflicted Damage 23 | . 23 . . . Shots 1 | . 1 . . . Rammed . | . . . . . Targets Rammed . | . . . . . Kicked . | . . . . . Crushed . | . . . . . Highest Temperature 34 | . 34 4 . 3 Average Temperature 21 | . 23 4 . 3 Received Heat Transfer 1281 | . 162 246 9 864 Siege Activations . | . . . . . Robots Corrupted 2 | . 1 1 . . Combat Hostiles 2 | . 1 1 . . Parts Fried 23 | . 5 . . 18 Impact Corruptions 41 | . . . . 41 Robots Melted . | . . . . . Combat Hostiles . | . . . . . Parts Melted . | . . . . . Heat Transferred 200 | . 50 50 100 . Parts Sabotaged . | . . . . . Parts Stolen . | . . . . . Parts Stripped . | . . . . . Power Chain Reactions 2 | . 1 1 . . Missiles Intercepted . | . . . . . Alert | -11 -10 -10 -9 -8 ------- Run | Scr Mat Min Mat Mat Peak Influence 567 | . 465 254 121 567 Initial 181 | . . 181 10 34 Average 158 | . 174 85 45 268 Maximum Alert Level 2 | . 2 1 . 2 Low Security (%) 64 | 100 75 75 100 30 Level 1 28 | . 19 24 . 50 Level 2 6 | . 5 . . 18 Level 3 . | . . . . . Level 4 . | . . . . . Level 5 . | . . . . . High Security . | . . . . . Max Security . | . . . . . Squads Dispatched 3 | . 2 . . 1 Investigation . | . . . . . Extermination . | . . . . . Reinforcement 3 | . 2 . . 1 Assault . | . . . . . Garrison . | . . . . . Intercept . | . . . . . Searches Triggered . | . . . . . Construction Impeded . | . . . . . Haulers Reinforced . | . . . . . Active Scanning Responses . | . . . . . Cargo Convoy Interrupts . | . . . . . Stealth | -11 -10 -10 -9 -8 --------- Run | Scr Mat Min Mat Mat Distress Signals 8 | . 2 4 . 2 Communications Jammed . | . . . . . Distress Signals . | . . . . . Times Spotted 76 | . 17 26 2 31 Peak Tracking Total 5 | . 4 5 1 5 Tactical Retreats 8 | . . 6 . 2 Traps | -11 -10 -10 -9 -8 ------- Run | Scr Mat Min Mat Mat Traps Triggered . | . . . . . Indirectly . | . . . . . Trap Hack Attempts . | . . . . . Triggered . | . . . . . Disarmed . | . . . . . Reprogrammed . | . . . . . Reused . | . . . . . Traps Extracted . | . . . . . Installed . | . . . . . Triggered 2 | . . 2 . . Machines | -11 -10 -10 -9 -8 ---------- Run | Scr Mat Min Mat Mat Machines Disabled 46 | . 21 1 7 17 Max in Single Turn 2 | . 2 1 1 1 Machines Sabotaged . | . . . . . Garrisons Compromised . | . . . . . Overloaded Fab Kills . | . . . . . Hacking | -11 -10 -10 -9 -8 --------- Run | Scr Mat Min Mat Mat Machines Accessed 10 | . 6 1 3 . Terminals 10 | . 6 1 3 . Fabricators . | . . . . . Repair Stations . | . . . . . Recycling Units . | . . . . . Scanalyzers . | . . . . . Garrison Access . | . . . . . Total Hacks 26 | . 14 3 9 . Successful 13 | . 7 1 5 . Failed 11 | . 6 2 3 . Catastrophic 2 | . 1 . 1 . Database Lockouts 2 | . 1 . 1 . Manual 12 | . 5 . 7 . Terminals 26 | . 14 3 9 . Fabricators . | . . . . . Repair Stations . | . . . . . Recycling Units . | . . . . . Scanalyzers . | . . . . . Garrison Access . | . . . . . Terminal Hacks 13 | . 7 1 5 . Prototype ID Bank 5 | . 3 . 2 . Unreport Threat 3 | . 1 . 2 . Locate Traps 1 | . 1 . . . Security Status 1 | . 1 . . . Zone Layout 3 | . 1 1 1 . Fabricator Hacks . | . . . . . Repair Station Hacks . | . . . . . Recycling Unit Hacks . | . . . . . Scanalyzer . | . . . . . Garrison Access Hacks . | . . . . . Unauthorized Hacks . | . . . . . Terminals . | . . . . . Fabricators . | . . . . . Repair Stations . | . . . . . Recycling Units . | . . . . . Scanalyzers . | . . . . . Garrison Access . | . . . . . Data Cores Recovered . | . . . . . Used . | . . . . . Hacking Detections 6 | . 4 . 2 . Full Trace Events . | . . . . . Feedback Events . | . . . . . Feedback Blocked . | . . . . . Robot Schematics Acquired . | . . . . . Robots Built . | . . . . . Authchips . | . . . . . Time . | . . . . . Total Robot Build Rating . | . . . . . Part Schematics Acquired . | . . . . . Parts Built . | . . . . . Authchips . | . . . . . Time . | . . . . . Total Part Build Rating . | . . . . . Parts Repaired . | . . . . . Time . | . . . . . Parts Recycled . | . . . . . Recycled Matter . | . . . . . Retrieved Matter . | . . . . . Retrieved Components . | . . . . . Parts Scanalyzed . | . . . . . Part Schematics Acquired . | . . . . . Parts Damaged . | . . . . . Bothacking | -11 -10 -10 -9 -8 ------------ Run | Scr Mat Min Mat Mat Used RIF Installer . | . . . . . Robots Hacked . | . . . . . Non-combat . | . . . . . Combat . | . . . . . Robot Hacks Applied . | . . . . . Relay Couplers Released . | . . . . . Fabnet Peak Effective % . | . . . . . Robots Rewired . | . . . . . Allies Hacked . | . . . . . Hacks Repelled . | . . . . . Allies | -11 -10 -10 -9 -8 -------- Run | Scr Mat Min Mat Mat Total Allies 1 | . . 1 . . Largest Group 1 | . . 1 . . Highest-Rated Group 31 | . . 31 . . Highest-Rated Ally 31 | . . 31 . . Total Orders . | . . . . . Ally Attacks 2 | . . 2 . . Total Damage 44 | . . 44 . . Kills 2 | . . 2 . . Allies Corrupted . | . . . . . Allies Melted . | . . . . . Intel | -11 -10 -10 -9 -8 ------- Run | Scr Mat Min Mat Mat Robot Analysis Total . | . . . . . Derelict Logs Recovered 1 | . . 1 . . Drone Launches . | . . . . . Drone Recoveries . | . . . . . Exploration | -11 -10 -10 -9 -8 ------------- Run | Scr Mat Min Mat Mat Turns Passed 4236 | 33 1169 1461 352 1221 Spaces Moved 2200 | 29 660 744 134 633 Core 49 | 5 . . . 44 Treads . | . . . . . Legs . | . . . . . Wheels 2151 | 24 660 744 134 589 Hover . | . . . . . Flight . | . . . . . Fastest Speed 50 | 50 100 100 100 50 Average Speed 99 | 98 100 100 100 96 Slowest Speed 150 | 150 100 100 100 100 Overloaded Moves . | . . . . . Propulsion Burnouts . | . . . . . Robots Hopped . | . . . . . Cave-ins Triggered 1 | . . . 1 . Exploration Rate (%) 54 | 2 97 96 17 60 Regions Visited 4 Branch Regions 1 Pre-discovered Areas . | . . . . . Known Exits Taken . | . . . . . Unknown Exits Taken 4 | 1 1 1 1 . Scrap Searched 2 | . . 2 . . Spaces Dug 27 | . . 5 15 7 Terrain Destroyed 136 | . 93 19 17 7 Melee 7 | . . . 1 6 Projectile 26 | . . 9 16 1 AOE 103 | . 93 10 . . Terrain Rammed . | . . . . . Walls Destroyed . | . . . . . Machines Disabled . | . . . . . Actions | -11 -10 -10 -9 -8 --------- Run | Scr Mat Min Mat Mat Total 3689 | 31 981 1373 273 1031 Wait 988 | . 117 527 108 236 Move 2196 | 28 659 743 133 633 Hop . | . . . . . Pick Up 4 | . 1 2 . 1 Fast Attach 22 | 3 4 8 . 7 Attach . | . . . . . Detach . | . . . . . Swap 6 | . . 4 . 2 Drop 10 | . . 8 . 2 Fire 247 | . 186 31 25 5 Melee 125 | . . 30 2 93 Ram . | . . . . . Kick . | . . . . . Crush . | . . . . . Escape Stasis . | . . . . . Rewire . | . . . . . Trap . | . . . . . Miscellaneous 91 | . 14 20 5 52 Route ------- -11/Scrapyard -10/Materials (discovered 4 exits: *Mat x3 / *Min) -10/Mines (discovered 2 exits: *Mat x2) -9/Materials -8/Materials (discovered 2 exits: *Fac x2) History --------- Turn | Location | Event 6 | -11/Scrapyard | Discovered new exit (range 16) 34 | -11/Scrapyard | Entered Materials 153 | -10/Materials | Upgraded with Propulsion slot (x1) 292 | -10/Materials | Reached level 2 310 | -10/Materials | Build established: Mutant 449 | -10/Materials | Central database locked down 466 | -10/Materials | Discovered new exit (range 5) 588 | -10/Materials | Discovered new exit (range 15) 829 | -10/Materials | Upgraded with Utility slot (x1) 832 | -10/Materials | Upgraded with Utility slot (x1) 987 | -10/Materials | Discovered new exit (range 15) 1016 | -10/Materials | Discovered new exit (range 8) 1203 | -10/Materials | Entered Mines 1204 | -10/Mines | Assembled infested the area 1205 | -10/Mines | Reached level 3 1209 | -10/Mines | Assisted by a Guerilla fighting off Assembled 1215 | -10/Mines | A weapon hastily lodged in a ceiling crevice suddenly fell to the ground 1292 | -10/Mines | Core integrity fell below 50% 1345 | -10/Mines | Core integrity fell below 20% 1375 | -10/Mines | Lost 3 parts (2u1w) 1841 | -10/Mines | Received a Mining Laser from a helpful Derelict 1842 | -10/Mines | Discovered new exit (range 6) 1918 | -10/Mines | Joined a pair of Derelicts in attacking an 0b10 outpost 1959 | -10/Mines | Discovered new exit (range 16) 2154 | -10/Mines | Learned Materials emergency access door positions 2211 | -10/Mines | Upgraded with Weapon slot (x1) 2330 | -10/Mines | Met a Derelict who couldn't figure out how to use a Trap Extractor 2496 | -10/Mines | Received a Rocket Launcher from a helpful Derelict 2664 | -10/Mines | Entered Materials 2666 | -9/Materials | Reached level 4 2851 | -9/Materials | Crushed by falling debris 2962 | -9/Materials | Reached level 5 2962 | -9/Materials | Central database locked down 2965 | -9/Materials | Discovered new exit (range 15) 3016 | -9/Materials | Entered another Materials area 3018 | -8/Materials | Reached level 6 3324 | -8/Materials | Core integrity fell below 50% 3355 | -8/Materials | Destroyed 7 combat bots 3368 | -8/Materials | Reached level 7 3447 | -8/Materials | Upgraded with Weapon slot (x2) 3565 | -8/Materials | Discovered new exit (range 15) 3581 | -8/Materials | Upgraded with Utility slot (x1) 3584 | -8/Materials | Identified exit to Factory 3931 | -8/Materials | Reached level 8 3964 | -8/Materials | Lost 3 parts (1p1u1w) 3969 | -8/Materials | Core integrity fell below 20% 4197 | -8/Materials | Discovered exit to Factory (range 9) 4237 | -8/Materials | Self-destructed Last Messages --------------- 04158_ R-06 Scavenger collects Wheel. 04161_ Terminal disabled. 04164_ K-01 Serf collects debris. 04172_ U-05 Engineer builds a Wall. 04172_ K-01 Serf collects debris. 04177_ U-05 Engineer builds a Wall. 04197_ EXIT=FOUND: FACTORY 04199_ Katana follow-up attack on G-50 Soldier. 04199_ G-50 Soldier Carbon-fiber Leg severed. 04200_ U-05 Engineer builds a Wall. 04200_ Com. Wheel destroyed. 04202_ G-50 Soldier suffers critical hit (Smash). 04202_ G-50 Soldier destroyed. 04206_ Upgraded: Mass Support (+5) 04207_ G-47 Trooper suffers critical hit (Smash). 04207_ G-47 Trooper destroyed. 04207_ K-01 Serf collects debris. 04216_ Used Protomatter to restore core integrity (+147, depleted) 04218_ K-01 Serf collects debris. 04235_ Acquired Scythe. Map ----- +----------------------------------------------------+ | ?"""?###?# ] # #?##? | | "?"" ############ ########? | | ? ?# ]# # # | | ? # """ # # """ # | | ?#?#?# """""=+ + """ # | | ?##### ? """"" #%* # """ # | | ###### ? """"" #= # # | | ?#?##? ? """ # #? """ # | | ?#?### ? # # """ # | | ???############## #? """ # | | ?###?############ # ?? | | ??#??#?## # #? [ # | | ??#######= # # ? # | | ???###### # ##?## ### | | ????? ?# """ + ######### | | #??? ? # """ ## #####???? | | ?????? ?+ """ ## ######?## | | ?????? ?# ## #?###??## | | ???? ?? # ## #?####??? | | ???? ?? # ## ######### | | ???? ???# "Y" ## # # | | ????????# """ ## # # | | ????? ########## # ! # | | ??? ???##????#### # # | | ???? ????????#??## + ! # | | ?????? ?##??#????# # @ # | | ??????? ???????#?# # # | | ????#????? ?? ??# # ! # | | ????????#??? ? ?## # # | | ?????????? ? ?#?# # # | | ?????????????? ?## + # | | ???????????? ???## ######### | | ?????????#?#????## # ??????? | | ???????????? ?? ???"?? ?# | | ???????????? ???? #???"???? | | ?????????????#???# ?? ?????# | | ???????????????#?# ???? ??## | | ????????????? ?#?? #????? ?# | | ????????????????#?##??#?????? | | ????????????????????????????# | | ??????????????????#?????????? | | ??????????????????????#?????? | | ????????????????????????????? | | ????????????????????????????? | | ????????????????????????????? | | ????????????????????????????? | | ????????????????????????????? | | ????????????????????????????? | | ????????????????????????????? | | | +----------------------------------------------------+ Best States ------------- Heat Dissipation 39 Energy Generation 10 Energy Capacity 250 Matter Stores 300 Matter Capacity 300 Sight Range 16 Terrain Scan Range 16 Terrain Scan Density 310 Armor Coverage 300 Evasion (%) 50 Melee Accuracy 5 Item Schematics ----------------- None Robot Schematics ------------------ None Fabricated ------------ Nothing Alien Tech Used ----------------- None Achievements -------------- None Challenges ------------ None RPGLIKE | -11 -10 -10 -9 -8 --------- Run | Scr Mat Min Mat Mat Levels Raised 7 | . 1 1 2 3 XP Earned 14653 | 3000 2930 992 2280 5451 XP Spent 12400 | . 4250 1750 . 6400 Upgrades 32 | . 8 13 . 11 Propulsion Slot 1 | . 1 . . . Utility Slot 3 | . 2 . . 1 Weapon Slot 3 | . . 1 . 2 Core Integrity 8 | . . 8 . . Mass Support 2 | . . . . 2 Inventory Capacity 2 | . 1 1 . . Terrain Scan Density 3 | . . 3 . . Ranged Accuracy 4 | . 4 . . . Melee Accuracy 6 | . . . . 6 Protomatter Created 680 | . 103 86 35 456 Integrity Restored 1959 | . 309 417 105 1128 Core 1959 | . 309 417 105 1128 Protomatter Decayed 267 | . . 187 . 80 Game ------ Seed DirtySeismicKatana Manual? 0 Play Time 00:41:19 Cumulative 40.4 hours Start 2022.09.25 @ 20:00:39 End 2022.09.25 @ 20:46:22 Sessions 1 Manual Loads 0 Difficulty Rogue Special Mode Winter2019/RPGLIKE Game No. 51 Rogue 31 Adventurer 20 Explorer 0 Win Type - Total 0 Types 0/0/0/0/0/0/0/0/0 Lore% 31 Gallery% 32 Achievement% 39 Wizard Run 0 Options --------- ASCII 0 Keyboard 0 Movement Mouse Keybinds 0 Fullscreen 2 Font 24/Crisp Map View 76x50 Tactical HUD 1 Map Filters NONE Filters NONE Steam 1 RUN: 49a334e9-4190-413a-be3c-448afd18dbb2